Workbook

Sheet Sheet1
B1: Ct values | M1: Average of technical replicates | V1: delta Ct (average-upps average)
B2: Replicate 1 | E2: Replicate 1 | H2: Replicate 1 | K2: Amount of H2O2 | M2: Replicate 1 | N2: Replicate 2 | O2: Replicate 3 | P2: Average biological replicates | Q2: Standard deviation of biological replicates | R2: delta Ct (average-upps average) | S2: 2^(-1*dCt) | T2: Fold change (with vs without H2O2) | V2: Replicate 1 | W2: Replicate 2 | X2: Replicate 3 | Y2: T-test
A3: uppS | B3: 22.31814271 | C3: 22.16372865 | D3: 22.24227502 | E3: 22.34549775 | F3: 22.12432878 | G3: 22.68995908 | H3: 21.85875553 | I3: 23.08535838 | J3: 21.34292742 | K3: 0 mM H2O2 | L3: uppS | M3: =AVERAGE(B3:D3) -> 22.24138213 | N3: =AVERAGE(E3:G3) -> 22.3865952 | O3: =AVERAGE(H3:J3) -> 22.09568044 | P3: =AVERAGE(M3:O3) -> 22.24121926 | Q3: =STDEV(M3:O3) -> 0.1454574469 | R3: 0 | S3: 1 | T3: 1 | V3: =M3-M$3 -> 0 | W3: =N3-N$3 -> 0 | X3: =O3-O$3 -> 0
B4: 22.08355742 | C4: 22.84762587 | D4: 23.10108102 | E4: 23.37765375 | F4: 23.59848055 | G4: 24.02277349 | H4: 22.53563637 | I4: 22.84446135 | J4: 22.20876453 | K4: 1 mM H2O2 | M4: =AVERAGE(B4:D4) -> 22.67742144 | N4: =AVERAGE(E4:G4) -> 23.6663026 | O4: =AVERAGE(H4:J4) -> 22.52962075 | P4: =AVERAGE(M4:O4) -> 22.9577816 | Q4: =STDEV(M4:O4) -> 0.6180313662 | R4: 0 | S4: 1 | V4: =M4-M$4 -> 0 | W4: =N4-N$4 -> 0 | X4: =O4-O$4 -> 0
A5: rpoE2 | B5: 24.13554653 | C5: 24.17537776 | D5: 24.04464395 | E5: 24.1259807 | F5: 23.9152246 | G5: 23.81285463 | H5: 24.09117122 | I5: 24.27371957 | J5: 23.67406265 | K5: 0 mM H2O2 | L5: rpoE2 | M5: =AVERAGE(B5:D5) -> 24.11852275 | N5: =AVERAGE(E5:G5) -> 23.95135331 | O5: =AVERAGE(H5:J5) -> 24.01298448 | P5: =AVERAGE(M5:O5) -> 24.02762018 | Q5: =STDEV(M5:O5) -> 0.08454027292 | R5: 1.786400922 | S5: 0.2898943413 | T5: 17.48859886 | V5: =M5-M$3 -> 1.877140617 | W5: =N5-N$3 -> 1.564758111 | X5: =O5-O$3 -> 1.917304039 | Y5: =TTEST(V5:X5,V6:X6,2,2) -> 1.566521704e-05
B6: 20.64755098 | C6: 20.58517001 | D6: 20.48721461 | E6: 21.25249133 | F6: 21.24302667 | G6: 21.29556008 | H6: 20.1165277 | I6: 20.07696559 | J6: 19.83805046 | K6: 1 mM H2O2 | M6: =AVERAGE(B6:D6) -> 20.57331187 | N6: =AVERAGE(E6:G6) -> 21.26369269 | O6: =AVERAGE(H6:J6) -> 20.01051458 | P6: =AVERAGE(M6:O6) -> 20.61583971 | Q6: =STDEV(M6:O6) -> 0.62767054 | R6: -2.341941881 | S6: 5.069845846 | V6: =M6-M$4 -> -2.10410957 | W6: =N6-N$4 -> -2.402609906 | X6: =O6-O$4 -> -2.519106168
A7: rpoE5 | B7: 26.21387599 | C7: 26.09057621 | D7: 25.78468957 | E7: 25.85509434 | F7: 25.85505847 | G7: 25.49519624 | H7: 25.46768548 | I7: 25.51346945 | J7: 25.31464632 | K7: 0 mM H2O2 | L7: rpoE5 | M7: =AVERAGE(B7:D7) -> 26.02971392 | N7: =AVERAGE(E7:G7) -> 25.73511635 | O7: =AVERAGE(H7:J7) -> 25.43193375 | P7: =AVERAGE(M7:O7) -> 25.73225467 | Q7: =STDEV(M7:O7) -> 0.2989003616 | R7: 3.491035418 | S7: 0.08893928288 | T7: 1.643261792 | V7: =M7-M$3 -> 3.788331795 | W7: =N7-N$3 -> 3.348521151 | X7: =O7-O$3 -> 3.336253306 | Y7: =TTEST(V7:X7,V8:X8,2,2) -> 0.1510365946
B8: 26.21387599 | C8: 26.09057621 | D8: 25.78468957 | E8: 25.85509434 | F8: 25.85505847 | G8: 25.49519624 | H8: 25.46768548 | I8: 25.51346945 | J8: 25.31464632 | K8: 1 mM H2O2 | M8: =AVERAGE(B8:D8) -> 26.02971392 | N8: =AVERAGE(E8:G8) -> 25.73511635 | O8: =AVERAGE(H8:J8) -> 25.43193375 | P8: =AVERAGE(M8:O8) -> 25.73225467 | Q8: =STDEV(M8:O8) -> 0.2989003616 | R8: 2.774473079 | S8: 0.1461505254 | V8: =M8-M$4 -> 3.352292487 | W8: =N8-N$4 -> 2.068813753 | X8: =O8-O$4 -> 2.902312998
A10: uppS | B10: 23.48134149 | C10: 22.8587627 | D10: 23.05874216 | E10: 24.18243316 | F10: 23.2051379 | G10: 24.79959742 | H10: 22.51682981 | I10: 22.95911621 | J10: 24.14278509 | K10: 0 mM H2O2 | L10: uppS | M10: =AVERAGE(B10:D10) -> 23.13294878 | N10: =AVERAGE(E10:G10) -> 24.06238949 | O10: =AVERAGE(H10:J10) -> 23.2062437 | P10: =AVERAGE(M10:O10) -> 23.46719399 | Q10: =STDEV(M10:O10) -> 0.5167555494 | R10: 0 | S10: 1 | T10: 1 | V10: =M10-M$10 -> 0 | W10: =N10-N$10 -> 0 | X10: =O10-O$10 -> 0
B11: 23.06772363 | C11: 22.76487316 | D11: 23.24283201 | E11: 24.99781716 | F11: 24.1892288 | G11: 26.33620982 | H11: 23.18669505 | I11: 23.27118429 | J11: 24.46147849 | K11: 1 mM H2O2 | M11: =AVERAGE(B11:D11) -> 23.02514294 | N11: =AVERAGE(E11:G11) -> 25.17441859 | O11: =AVERAGE(H11:J11) -> 23.63978594 | P11: =AVERAGE(M11:O11) -> 23.94644916 | Q11: =STDEV(M11:O11) -> 1.106968024 | R11: 0 | S11: 1 | V11: =M11-M$11 -> 0 | W11: =N11-N$11 -> 0 | X11: =O11-O$11 -> 0
A12: rpoH1 | B12: 23.07558629 | C12: 22.80750705 | D12: 22.73569292 | E12: 23.15279909 | F12: 22.98081433 | G12: 23.31796595 | H12: 22.57617304 | I12: 22.76998094 | J12: 22.86366221 | K12: 0 mM H2O2 | L12: rpoH1 | M12: =AVERAGE(B12:D12) -> 22.87292875 | N12: =AVERAGE(E12:G12) -> 23.15052646 | O12: =AVERAGE(H12:J12) -> 22.7366054 | P12: =AVERAGE(M12:O12) -> 22.9200202 | Q12: =STDEV(M12:O12) -> 0.2109404286 | R12: -0.5471737886 | S12: 1.461220388 | T12: 6.340249262 | V12: =M12-M$10 -> -0.2600200282 | W12: =N12-N$10 -> -0.9118630327 | X12: =O12-O$10 -> -0.4696383049 | Y12: =TTEST(V12:X12,V13:X13,2,2) -> 0.005544481651
B13: 21.11100598 | C13: 20.16951959 | D13: 20.69195518 | E13: 20.96618049 | F13: 21.23817526 | G13: 21.59736897 | H13: 20.11677579 | I13: 20.19374293 | J13: 20.52789809 | K13: 1 mM H2O2 | M13: =AVERAGE(B13:D13) -> 20.65749358 | N13: =AVERAGE(E13:G13) -> 21.26724157 | O13: =AVERAGE(H13:J13) -> 20.27947227 | P13: =AVERAGE(M13:O13) -> 20.73473581 | Q13: =STDEV(M13:O13) -> 0.4983942411 | R13: -3.211713349 | S13: 9.264501487 | V13: =M13-M$11 -> -2.367649353 | W13: =N13-N$11 -> -3.907177021 | X13: =O13-O$11 -> -3.360313672
A14: rpoH2 | B14: 26.60761293 | C14: 26.8792234 | D14: 26.56259682 | E14: 26.87402135 | F14: 26.71173264 | G14: 27.18278514 | H14: 26.60691788 | I14: 26.83055033 | J14: 26.58494802 | K14: 0 mM H2O2 | L14: rpoH2 | M14: =AVERAGE(B14:D14) -> 26.68314438 | N14: =AVERAGE(E14:G14) -> 26.92284638 | O14: =AVERAGE(H14:J14) -> 26.67413874 | P14: =AVERAGE(M14:O14) -> 26.76004317 | Q14: =STDEV(M14:O14) -> 0.141063601 | R14: 3.292849178 | S14: 0.1020360473 | T14: 26.71187226 | V14: =M14-M$10 -> 3.550195602 | W14: =N14-N$10 -> 2.86045689 | X14: =O14-O$10 -> 3.467895041 | Y14: =TTEST(V14:X14,V15:X15,2,2) -> 0.0008709081595
B15: 22.79044166 | C15: 22.70621009 | D15: 22.06217068 | E15: 23.14675238 | F15: 22.9558265 | G15: 23.0720395 | H15: 21.80290202 | I15: 21.88278999 | J15: 22.07986945 | K15: 1 mM H2O2 | M15: =AVERAGE(B15:D15) -> 22.51960747 | N15: =AVERAGE(E15:G15) -> 23.05820613 | O15: =AVERAGE(H15:J15) -> 21.92185382 | P15: =AVERAGE(M15:O15) -> 22.49988914 | Q15: =STDEV(M15:O15) -> 0.5684327155 | R15: -1.446560016 | S15: 2.72557386 | V15: =M15-M$11 -> -0.5055354624 | W15: =N15-N$11 -> -2.116212464 | X15: =O15-O$11 -> -1.717932123
A16: oxyR | B16: 25.37346104 | C16: 25.21407988 | D16: 25.05189286 | E16: 25.54114624 | F16: 25.20880958 | G16: 25.15085995 | H16: 25.04218156 | I16: 25.12363232 | J16: 25.14057074 | K16: 0 mM H2O2 | L16: oxyR | M16: =AVERAGE(B16:D16) -> 25.21314459 | N16: =AVERAGE(E16:G16) -> 25.30027192 | O16: =AVERAGE(H16:J16) -> 25.10212821 | P16: =AVERAGE(M16:O16) -> 25.20518157 | Q16: =STDEV(M16:O16) -> 0.09931158225 | R16: 1.737987583 | S16: 0.2997875587 | T16: 6.049774116 | V16: =M16-M$10 -> 2.080195812 | W16: =N16-N$10 -> 1.237882433 | X16: =O16-O$10 -> 1.895884504 | Y16: =TTEST(V16:X16,V17:X17,2,2) -> 0.01314154764
B17: 23.16707438 | C17: 23.06210029 | D17: 22.93714613 | E17: 23.39098268 | F17: 23.13481279 | G17: 23.36315587 | H17: 23.07549839 | I17: 23.0313966 | J17: 22.62583203 | K17: 1 mM H2O2 | M17: =AVERAGE(B17:D17) -> 23.05544027 | N17: =AVERAGE(E17:G17) -> 23.29631712 | O17: =AVERAGE(H17:J17) -> 22.91090901 | P17: =AVERAGE(M17:O17) -> 23.08755546 | Q17: =STDEV(M17:O17) -> 0.1947007754 | R17: -0.858893694 | S17: 1.813647013 | V17: =M17-M$11 -> 0.0302973297 | W17: =N17-N$11 -> -1.878101477 | X17: =O17-O$11 -> -0.7288769348
A19: uppS | B19: 22.14766242 | C19: 22.13071516 | D19: 22.08412825 | E19: 22.27731664 | F19: 22.31218633 | G19: 22.1841072 | H19: 21.6455932 | I19: 21.71456507 | J19: 21.92571542 | K19: 0 mM H2O2 | L19: uppS | M19: =AVERAGE(B19:D19) -> 22.12083528 | N19: =AVERAGE(E19:G19) -> 22.25787006 | O19: =AVERAGE(H19:J19) -> 21.76195789 | P19: =AVERAGE(M19:O19) -> 22.04688774 | Q19: =STDEV(M19:O19) -> 0.2560925552 | R19: 0 | S19: 1 | T19: 1 | V19: =M19-M$19 -> 0 | W19: =N19-N$19 -> 0 | X19: =O19-O$19 -> 0
B20: 22.47991011 | C20: 22.50598451 | D20: 22.55729118 | E20: 23.33665366 | F20: 23.58342974 | G20: 23.00733028 | H20: 22.12248206 | I20: 22.17785512 | J20: 22.20644989 | K20: 1 mM H2O2 | M20: =AVERAGE(B20:D20) -> 22.51439527 | N20: =AVERAGE(E20:G20) -> 23.30913789 | O20: =AVERAGE(H20:J20) -> 22.16892902 | P20: =AVERAGE(M20:O20) -> 22.66415406 | Q20: =STDEV(M20:O20) -> 0.5846707115 | R20: 0 | S20: 1 | V20: =M20-M$20 -> 0 | W20: =N20-N$20 -> 0 | X20: =O20-O$20 -> 0
A21: exoK | B21: 25.34296425 | C21: 25.11804301 | D21: 24.47300024 | E21: 25.44258744 | F21: 25.10025537 | G21: 24.98879447 | H21: 24.44048916 | I21: 27.40123996 | J21: 25.12299199 | K21: 0 mM H2O2 | L21: exoK | M21: =AVERAGE(B21:D21) -> 24.9780025 | N21: =AVERAGE(E21:G21) -> 25.17721242 | O21: =AVERAGE(H21:J21) -> 25.65490704 | P21: =AVERAGE(M21:O21) -> 25.27004065 | Q21: =STDEV(M21:O21) -> 0.347868864 | R21: 3.223152913 | S21: 0.1070863935 | T21: 5.387353422 | V21: =M21-M$19 -> 2.857167227 | W21: =N21-N$19 -> 2.919342369 | X21: =O21-O$19 -> 3.892949143 | Y21: =TTEST(V21:X21,V22:X22,2,2) -> 0.00731420397
B22: 23.63468345 | C22: 23.72050265 | D22: 23.80316194 | E22: 23.42799514 | F22: 23.54463124 | G22: 23.26568285 | H22: 23.1454779 | I22: 23.20681506 | J22: 23.37062213 | K22: 1 mM H2O2 | M22: =AVERAGE(B22:D22) -> 23.71944935 | N22: =AVERAGE(E22:G22) -> 23.41276974 | O22: =AVERAGE(H22:J22) -> 23.24097169 | P22: =AVERAGE(M22:O22) -> 23.45773026 | Q22: =STDEV(M22:O22) -> 0.2423866798 | R22: 0.7935762008 | S22: 0.5769122486 | V22: =M22-M$20 -> 1.205054083 | W22: =N22-N$20 -> 0.1036318475 | X22: =O22-O$20 -> 1.072042672
A23: syrM | B23: 24.21672862 | C23: 24.18986921 | D23: 24.39740685 | E23: 24.68360798 | F23: 24.71512012 | G23: 24.37098323 | H23: 25.01090823 | I23: 24.94915062 | J23: 24.83683904 | K23: 0 mM H2O2 | L23: syrM | M23: =AVERAGE(B23:D23) -> 24.26800156 | N23: =AVERAGE(E23:G23) -> 24.58990378 | O23: =AVERAGE(H23:J23) -> 24.9322993 | P23: =AVERAGE(M23:O23) -> 24.59673488 | Q23: =STDEV(M23:O23) -> 0.3322015464 | R23: 2.549847136 | S23: 0.1707731257 | T23: 9.844169027 | V23: =M23-M$19 -> 2.147166285 | W23: =N23-N$19 -> 2.332033722 | X23: =O23-O$19 -> 3.170341402 | Y23: =TTEST(V23:X23,V24:X24,2,2) -> 0.006206403975
B24: 21.125775 | C24: 20.8184496 | D24: 20.98788633 | E24: 23.34312348 | F24: 23.6827979 | G24: 23.76177882 | H24: 20.4969502 | I24: 21.64911632 | J24: 21.36670826 | K24: 1 mM H2O2 | M24: =AVERAGE(B24:D24) -> 20.97737031 | N24: =AVERAGE(E24:G24) -> 23.59590006 | O24: =AVERAGE(H24:J24) -> 21.17092493 | P24: =AVERAGE(M24:O24) -> 21.91473177 | Q24: =STDEV(M24:O24) -> 1.459147345 | R24: -0.749422293 | S24: 1.681119515 | V24: =M24-M$20 -> -1.537024954 | W24: =N24-N$20 -> 0.2867621676 | X24: =O24-O$20 -> -0.9980040929
A25: hmuS | B25: 26.0800756 | C25: 26.05565001 | D25: 26.04830009 | E25: 25.7877446 | F25: 25.66698501 | G25: 25.51632146 | H25: 26.22413421 | I25: 25.40626704 | J25: 26.09513872 | K25: 0 mM H2O2 | L25: hmuS | M25: =AVERAGE(B25:D25) -> 26.0613419 | N25: =AVERAGE(E25:G25) -> 25.65701703 | O25: =AVERAGE(H25:J25) -> 25.90851332 | P25: =AVERAGE(M25:O25) -> 25.87562408 | Q25: =STDEV(M25:O25) -> 0.2041590734 | R25: 3.82873634 | S25: 0.07037777235 | T25: 148.565948 | V25: =M25-M$19 -> 3.940506621 | W25: =N25-N$19 -> 3.39914697 | X25: =O25-O$19 -> 4.14655543 | Y25: =TTEST(V25:X25,V26:X26,2,2) -> 2.841545233e-05
B26: 18.51959829 | C26: 19.15207228 | D26: 18.19089018 | E26: 20.5433592 | F26: 19.85702754 | G26: 20.07900655 | H26: 19.11119487 | I26: 18.84785768 | J26: 19.20036996 | K26: 1 mM H2O2 | M26: =AVERAGE(B26:D26) -> 18.62085358 | N26: =AVERAGE(E26:G26) -> 20.15979777 | O26: =AVERAGE(H26:J26) -> 19.05314084 | P26: =AVERAGE(M26:O26) -> 19.27793073 | Q26: =STDEV(M26:O26) -> 0.7937160522 | R26: -3.386223331 | S26: 10.45574046 | V26: =M26-M$20 -> -3.893541681 | W26: =N26-N$20 -> -3.149340127 | X26: =O26-O$20 -> -3.115788185
A28: uppS | B28: 22.33181307 | C28: 22.45906176 | D28: 22.34709942 | E28: 22.43038732 | F28: 22.77512903 | G28: 23.01267201 | H28: 23.12492245 | I28: 23.19751687 | J28: 23.32671363 | K28: 0 mM H2O2 | L28: uppS | M28: =AVERAGE(B28:D28) -> 22.37932475 | N28: =AVERAGE(E28:G28) -> 22.73939612 | O28: =AVERAGE(H28:J28) -> 23.21638432 | P28: =AVERAGE(M28:O28) -> 22.7783684 | Q28: =STDEV(M28:O28) -> 0.4198884467 | R28: 0 | S28: 1 | T28: 1 | V28: =M28-M$28 -> 0 | W28: =N28-N$28 -> 0 | X28: =O28-O$28 -> 0
B29: 23.88179963 | C29: 24.0281626 | D29: 23.49027939 | E29: 24.13131765 | F29: 24.01157034 | G29: 23.99407696 | H29: 23.19302738 | I29: 23.24279671 | J29: 23.07326953 | K29: 1 mM H2O2 | M29: =AVERAGE(B29:D29) -> 23.80008054 | N29: =AVERAGE(E29:G29) -> 24.04565498 | O29: =AVERAGE(H29:J29) -> 23.16969787 | P29: =AVERAGE(M29:O29) -> 23.67181113 | Q29: =STDEV(M29:O29) -> 0.4518462077 | R29: 0 | S29: 1 | V29: =M29-M$29 -> 0 | W29: =N29-N$29 -> 0 | X29: =O29-O$29 -> 0
A30: pqqE | B30: 26.42136056 | C30: 26.70069764 | D30: 26.63000492 | E30: 27.16528073 | F30: 26.64557307 | G30: 26.61196531 | H30: 26.66874277 | I30: 27.12231718 | J30: 26.96484455 | K30: 0 mM H2O2 | L30: pqqE | M30: =AVERAGE(B30:D30) -> 26.58402104 | N30: =AVERAGE(E30:G30) -> 26.80760637 | O30: =AVERAGE(H30:J30) -> 26.91863484 | P30: =AVERAGE(M30:O30) -> 26.77008742 | Q30: =STDEV(M30:O30) -> 0.1704328394 | R30: 3.99171902 | S30: 0.06285977768 | T30: 17.17310186 | V30: =M30-M$28 -> 4.204696287 | W30: =N30-N$28 -> 4.068210252 | X30: =O30-O$28 -> 3.702250521 | Y30: =TTEST(V30:X30,V31:X31,2,2) -> 7.110063623e-05
B31: 23.84380261 | C31: 23.55219115 | D31: 23.55395973 | E31: 23.69182413 | F31: 23.62653429 | G31: 23.56531898 | H31: 23.28618168 | I31: 23.46955376 | J31: 23.46369637 | K31: 1 mM H2O2 | M31: =AVERAGE(B31:D31) -> 23.64998449 | N31: =AVERAGE(E31:G31) -> 23.62789247 | O31: =AVERAGE(H31:J31) -> 23.40647727 | P31: =AVERAGE(M31:O31) -> 23.56145141 | Q31: =STDEV(M31:O31) -> 0.1346653344 | R31: -0.1103597216 | S31: 1.079497365 | V31: =M31-M$29 -> -0.1500960459 | W31: =N31-N$29 -> -0.4177625169 | X31: =O31-O$29 -> 0.236779398
A32: hypR | B32: 23.36677664 | C32: 23.38698283 | D32: 23.37860866 | E32: 23.71184948 | F32: 23.88153536 | G32: 23.57948131 | H32: 23.33584272 | I32: 23.14204858 | J32: 23.58646081 | K32: 0 mM H2O2 | L32: hypR | M32: =AVERAGE(B32:D32) -> 23.37745605 | N32: =AVERAGE(E32:G32) -> 23.72428872 | O32: =AVERAGE(H32:J32) -> 23.35478404 | P32: =AVERAGE(M32:O32) -> 23.4855096 | Q32: =STDEV(M32:O32) -> 0.2070992633 | R32: 0.7071412054 | S32: 0.6125327107 | T32: 4.078526224 | V32: =M32-M$28 -> 0.9981312968 | W32: =N32-N$28 -> 0.9848925964 | X32: =O32-O$28 -> 0.138399723 | Y32: =TTEST(V32:X32,V33:X33,2,2) -> 0.003387066561
B33: 22.27761319 | C33: 22.19148927 | D33: 22.05968499 | E33: 22.42225646 | F33: 22.96082494 | G33: 22.99900522 | H33: 21.89326793 | I33: 22.0211846 | J33: 22.33281307 | K33: 1 mM H2O2 | M33: =AVERAGE(B33:D33) -> 22.17626248 | N33: =AVERAGE(E33:G33) -> 22.79402887 | O33: =AVERAGE(H33:J33) -> 22.08242187 | P33: =AVERAGE(M33:O33) -> 22.35090441 | Q33: =STDEV(M33:O33) -> 0.3866147746 | R33: -1.320906723 | S33: 2.498230723 | V33: =M33-M$29 -> -1.623818056 | W33: =N33-N$29 -> -1.251626109 | X33: =O33-O$29 -> -1.087276004
A34: rpoE1 | B34: 25.45541864 | C34: 25.87060541 | D34: 25.58147897 | E34: 25.5588689 | F34: 25.80449359 | G34: 25.71799754 | H34: 25.64566473 | I34: 25.62214639 | J34: 25.84095211 | K34: 0 mM H2O2 | L34: rpoE1 | M34: =AVERAGE(B34:D34) -> 25.63583434 | N34: =AVERAGE(E34:G34) -> 25.69378668 | O34: =AVERAGE(H34:J34) -> 25.70292108 | P34: =AVERAGE(M34:O34) -> 25.67751403 | Q34: =STDEV(M34:O34) -> 0.03638346867 | R34: 2.899145636 | S34: 0.1340510443 | T34: 4.697176255 | V34: =M34-M$28 -> 3.256509591 | W34: =N34-N$28 -> 2.954390555 | X34: =O34-O$28 -> 2.486536762 | Y34: =TTEST(V34:X34,V35:X35,2,2) -> 0.001124979901
B35: 24.55538923 | C35: 24.26557097 | D35: 24.04946277 | E35: 24.30163325 | F35: 24.98621162 | G35: 24.51500319 | H35: 24.03537128 | I35: 24.18161754 | J35: 24.1622075 | K35: 1 mM H2O2 | M35: =AVERAGE(B35:D35) -> 24.29014099 | N35: =AVERAGE(E35:G35) -> 24.60094935 | O35: =AVERAGE(H35:J35) -> 24.12639877 | P35: =AVERAGE(M35:O35) -> 24.33916304 | Q35: =STDEV(M35:O35) -> 0.2410434302 | R35: 0.6673519062 | S35: 0.6296613825 | V35: =M35-M$29 -> 0.490060449 | W35: =N35-N$29 -> 0.5552943718 | X35: =O35-O$29 -> 0.9567008978
A37: uppS | B37: 21.91961176 | C37: 22.2589656 | D37: 22.29119231 | E37: 23.20187276 | F37: 22.99427615 | G37: 23.08949361 | H37: 23.11893116 | I37: 23.48085572 | J37: 23.38018623 | K37: 0 mM H2O2 | L37: uppS | M37: =AVERAGE(B37:D37) -> 22.15658989 | N37: =AVERAGE(E37:G37) -> 23.09521417 | O37: =AVERAGE(H37:J37) -> 23.3266577 | P37: =AVERAGE(M37:O37) -> 22.85948726 | Q37: =STDEV(M37:O37) -> 0.6196289673 | R37: 0 | S37: 1 | T37: 1 | V37: =M37-M$37 -> 0 | W37: =N37-N$37 -> 0 | X37: =O37-O$37 -> 0
B38: 22.86667842 | C38: 23.26973088 | D38: 22.94824865 | E38: 24.34011065 | F38: 24.11549399 | G38: 23.43889775 | H38: 23.17100056 | I38: 23.27722666 | J38: 23.61043419 | K38: 1 mM H2O2 | M38: =AVERAGE(B38:D38) -> 23.02821932 | N38: =AVERAGE(E38:G38) -> 23.96483413 | O38: =AVERAGE(H38:J38) -> 23.35288714 | P38: =AVERAGE(M38:O38) -> 23.44864686 | Q38: =STDEV(M38:O38) -> 0.4755935976 | R38: 0 | S38: 1 | V38: =M38-M$38 -> 0 | W38: =N38-N$38 -> 0 | X38: =O38-O$38 -> 0
A39: hypP | B39: 20.37071302 | C39: 20.41263203 | D39: 20.31182438 | E39: 20.82676981 | F39: 19.9688661 | G39: 20.55473606 | H39: 20.26840697 | I39: 20.57485344 | J39: 21.00714346 | K39: 0 mM H2O2 | L39: hypP | M39: =AVERAGE(B39:D39) -> 20.36505648 | N39: =AVERAGE(E39:G39) -> 20.45012399 | O39: =AVERAGE(H39:J39) -> 20.61680129 | P39: =AVERAGE(M39:O39) -> 20.47732725 | Q39: =STDEV(M39:O39) -> 0.1280580969 | R39: -2.382160004 | S39: 5.213166738 | T39: 0.1323685586 | V39: =M39-M$37 -> -1.791533415 | W39: =N39-N$37 -> -2.645090184 | X39: =O39-O$37 -> -2.709856413 | Y39: =TTEST(V39:X39,V40:X40,2,2) -> 0.001131485547
B40: 23.38678651 | C40: 23.41217337 | D40: 23.07188811 | E40: 24.65088205 | F40: 24.98506402 | G40: 24.93632385 | H40: 23.43614426 | I40: 23.74179251 | J40: 24.23363554 | K40: 1 mM H2O2 | M40: =AVERAGE(B40:D40) -> 23.29028266 | N40: =AVERAGE(E40:G40) -> 24.85742331 | O40: =AVERAGE(H40:J40) -> 23.80385744 | P40: =AVERAGE(M40:O40) -> 23.98385447 | Q40: =STDEV(M40:O40) -> 0.7989253094 | R40: 0.5352076104 | S40: 0.6900593668 | V40: =M40-M$38 -> 0.2620633468 | W40: =N40-N$38 -> 0.8925891812 | X40: =O40-O$38 -> 0.4509703033
A41: fixN2 | B41: 19.17722316 | C41: 18.9537554 | D41: 18.64895452 | E41: 19.73539505 | F41: 19.10624973 | G41: 19.02675759 | H41: 20.81965132 | I41: 21.46010921 | J41: 21.69436195 | K41: 0 mM H2O2 | L41: SMa0765 (fixN2) | M41: =AVERAGE(B41:D41) -> 18.92664436 | N41: =AVERAGE(E41:G41) -> 19.28946746 | O41: =AVERAGE(H41:J41) -> 21.32470749 | P41: =AVERAGE(M41:O41) -> 19.84693977 | Q41: =STDEV(M41:O41) -> 1.292578135 | R41: -3.012547486 | S41: 8.069881487 | T41: 0.02108124882 | V41: =M41-M$37 -> -3.229945532 | W41: =N41-N$37 -> -3.805746718 | X41: =O41-O$37 -> -2.001950209 | Y41: =TTEST(V41:X41,V42:X42,2,2) -> 0.002656583757
B42: 26.43403297 | C42: 26.41468103 | D42: 26.6014123 | E42: 25.27089907 | F42: 25.39284062 | G42: 25.13280687 | H42: 26.27084752 | I42: 26.06983959 | J42: 26.44859711 | K42: 1 mM H2O2 | M42: =AVERAGE(B42:D42) -> 26.48337543 | N42: =AVERAGE(E42:G42) -> 25.26551552 | O42: =AVERAGE(H42:J42) -> 26.26309474 | P42: =AVERAGE(M42:O42) -> 26.00399523 | Q42: =STDEV(M42:O42) -> 0.6489569377 | R42: 2.555348371 | S42: 0.1701231795 | V42: =M42-M$38 -> 3.455156115 | W42: =N42-N$38 -> 1.300681393 | X42: =O42-O$38 -> 2.910207606
A43: ntrX | B43: 22.82988817 | C43: 22.05988279 | D43: 21.77026397 | E43: 22.28124325 | F43: 21.32752074 | G43: 22.22195651 | H43: 21.16328855 | I43: 21.09549533 | J43: 21.36460631 | K43: 0 mM H2O2 | L43: ntrX | M43: =AVERAGE(B43:D43) -> 22.22001165 | N43: =AVERAGE(E43:G43) -> 21.9435735 | O43: =AVERAGE(H43:J43) -> 21.20779673 | P43: =AVERAGE(M43:O43) -> 21.79046062 | Q43: =STDEV(M43:O43) -> 0.523189664 | R43: -1.069026632 | S43: 2.098017384 | T43: 0.2682728442 | V43: =M43-M$37 -> 0.06342175637 | W43: =N43-N$37 -> -1.151640676 | X43: =O43-O$37 -> -2.118860975 | Y43: =TTEST(V43:X43,V44:X44,2,2) -> 0.04363825734
B44: 23.8515566 | C44: 23.87214071 | D44: 24.40035779 | E44: 24.49891289 | F44: 24.52929154 | G44: 24.37668429 | H44: 24.42951555 | I44: 24.16356514 | J44: 24.37860115 | K44: 1 mM H2O2 | M44: =AVERAGE(B44:D44) -> 24.0413517 | N44: =AVERAGE(E44:G44) -> 24.46829624 | O44: =AVERAGE(H44:J44) -> 24.32389395 | P44: =AVERAGE(M44:O44) -> 24.2778473 | Q44: =STDEV(M44:O44) -> 0.2171649859 | R44: 0.8292004371 | S44: 0.5628410908 | V44: =M44-M$38 -> 1.013132384 | W44: =N44-N$38 -> 0.5034621134 | X44: =O44-O$38 -> 0.9710068144
A45: rpsD | B45: 18.45063454 | C45: 17.97177363 | D45: 18.02772909 | E45: 17.89371668 | F45: 17.51634422 | G45: 18.04505242 | H45: 18.27539954 | I45: 18.29937209 | J45: 18.64863664 | K45: 0 mM H2O2 | L45: SMc00485 (rpsD) | M45: =AVERAGE(B45:D45) -> 18.15004575 | N45: =AVERAGE(E45:G45) -> 17.81837111 | O45: =AVERAGE(H45:J45) -> 18.40780276 | P45: =AVERAGE(M45:O45) -> 18.12540654 | Q45: =STDEV(M45:O45) -> 0.2954872843 | R45: -4.734080717 | S45: 26.61339609 | T45: 0.0834288838 | V45: =M45-M$37 -> -4.006544135 | W45: =N45-N$37 -> -5.276843067 | X45: =O45-O$37 -> -4.918854948 | Y45: =TTEST(V45:X45,V46:X46,2,2) -> 0.0006720133632
B46: 22.23917995 | C46: 22.24469751 | D46: 21.60837977 | E46: 22.4872421 | F46: 22.0153629 | G46: 22.55878367 | H46: 22.43422247 | I46: 22.59669848 | J46: 22.49631166 | K46: 1 mM H2O2 | M46: =AVERAGE(B46:D46) -> 22.03075241 | N46: =AVERAGE(E46:G46) -> 22.35379622 | O46: =AVERAGE(H46:J46) -> 22.50907754 | P46: =AVERAGE(M46:O46) -> 22.29787539 | Q46: =STDEV(M46:O46) -> 0.2440165708 | R46: -1.150771471 | S46: 2.22032593 | V46: =M46-M$37 -> -0.1258374812 | W46: =N46-N$37 -> -0.7414179508 | X46: =O46-O$37 -> -0.8175801663

Sheet Sheet 1
A1: Table 1
